bitfinex/quotes_BTCUSD_20250908
["timestamp","ask_amount","ask_price","bid_price","bid_amount"]
[1757359278733,1.59471758,112190.0,112180.0,0.15001832]
[1757359279351,1.59571758,112190.0,112180.0,0.15001832]
[1757359279503,1.59871758,112190.0,112180.0,0.15001832]
[1757359279709,1.59771758,112190.0,112180.0,0.15001832]
[1757359279910,1.19731614,112190.0,112180.0,0.15001832]
[1757359280132,1.59771758,112190.0,112180.0,0.15001832]
[1757359280970,1.59971758,112190.0,112180.0,0.15001832]
[1757359286813,1.50780159,112190.0,112180.0,0.15001832]
[1757359287522,1.10740015,112190.0,112180.0,0.15001832]
[1757359287730,1.50780159,112190.0,112180.0,0.15001832]
[1757359288158,1.10740015,112190.0,112180.0,0.15001832]
[1757359288995,1.50780159,112190.0,112180.0,0.15001832]
[1757359289975,1.57115387,112190.0,112180.0,0.15001832]
[1757359290366,1.50780159,112190.0,112180.0,0.15001832]
[1757359291018,1.10740015,112190.0,112180.0,0.15001832]
[1757359293094,1.50780159,112190.0,112180.0,0.15001832]
[1757359294352,1.50791444,112190.0,112180.0,0.15001832]
[1757359294558,1.50791444,112190.0,112180.0,0.00013832]
[1757359294827,1.59983043,112190.0,112180.0,0.15001832]
[1757359299529,1.19931614,112190.0,112180.0,0.15001832]
[1757359299945,1.59983043,112190.0,112180.0,0.15001832]
[1757359301417,1.50791444,112190.0,112180.0,0.15001832]
[1757359306145,0.74646133,112190.0,112180.0,0.15204832]
[1757359306349,0.71458499,112190.0,112180.0,0.15204832]
[1757359306813,0.71458499,112190.0,112180.0,0.1787987]
[1757359307255,0.73552381,112190.0,112180.0,0.1787987]
[1757359307699,0.29612381,112190.0,112180.0,0.1787987]
[1757359308339,0.29915381,112190.0,112180.0,0.1787987]
[1757359308756,0.29612381,112190.0,112180.0,0.1787987]
[1757359309063,0.29412381,112190.0,112180.0,0.1787987]
[1757359309493,0.29212381,112190.0,112180.0,0.1787987]
[1757359309704,0.29412381,112190.0,112180.0,0.1787987]
[1757359309931,0.29615381,112190.0,112180.0,0.1787987]
[1757359310142,0.29715381,112190.0,112180.0,0.1787987]
[1757359311523,0.29412381,112190.0,112180.0,0.1787987]
[1757359313882,0.29928381,112190.0,112180.0,0.1787987]
[1757359314130,0.29715381,112190.0,112180.0,0.1787987]
[1757359317102,0.29928381,112190.0,112180.0,0.1787987]
[1757359317707,0.29715381,112190.0,112180.0,0.1787987]
[1757359318266,0.29928381,112190.0,112180.0,0.1787987]
[1757359320173,0.29928381,112190.0,112180.0,0.0289187]
[1757359320315,0.6997981,112190.0,112180.0,0.0268887]
[1757359320526,0.6997981,112190.0,112180.0,0.00013832]
[1757359320738,0.72655012,112190.0,112180.0,0.14993832]
[1757359321998,0.72655012,112190.0,112180.0,0.00013832]
[1757359322390,0.72655012,112190.0,112180.0,0.14989832]
[1757359324871,0.72655012,112190.0,112180.0,0.00013832]
[1757359325081,0.72655012,112190.0,112180.0,0.14989832]
[1757359326288,0.32603583,112190.0,112180.0,0.14989832]
[1757359326735,0.72655012,112190.0,112180.0,0.14989832]
[1757359326952,0.6997981,112190.0,112180.0,0.14989832]
[1757359329859,0.6997981,112190.0,112180.0,0.00013832]
[1757359330065,0.6997981,112190.0,112180.0,0.14989832]
[1757359330330,1.0397981,112190.0,112180.0,0.14989832]
[1757359330853,1.13171409,112190.0,112180.0,0.00013832]
[1757359331065,1.13171409,112190.0,112180.0,0.14989832]
[1757359331280,1.53222838,112190.0,112180.0,0.14989832]
[1757359332519,1.13171409,112190.0,112180.0,0.14989832]
[1757359333856,1.15088464,112190.0,112180.0,0.14989832]
[1757359334063,1.13171409,112190.0,112180.0,0.14989832]
[1757359335099,1.15088535,112190.0,112180.0,0.14989832]
[1757359335315,1.13171409,112190.0,112180.0,0.14989832]
[1757359340663,1.53222838,112190.0,112180.0,0.14989832]
[1757359340967,1.13171409,112190.0,112180.0,0.14989832]
[1757359342945,1.53222838,112190.0,112180.0,0.14989832]
[1757359343664,1.13171409,112190.0,112180.0,0.14989832]
[1757359343874,1.53222838,112190.0,112180.0,0.14989832]
[1757359345230,0.7311998,112190.0,112180.0,0.14989832]
[1757359345480,1.53222838,112190.0,112180.0,0.14989832]
[1757359347088,1.13171409,112190.0,112180.0,0.14989832]
[1757359347943,1.0397981,112190.0,112180.0,0.14989832]
[1757359348181,0.63928381,112190.0,112180.0,0.14989832]
[1757359348594,1.0397981,112190.0,112180.0,0.14989832]
[1757359354412,0.61834499,112190.0,112180.0,0.15195832]
[1757359354629,0.61318499,112190.0,112180.0,0.15195832]
[1757359355029,0.63724381,112190.0,112180.0,0.15195832]
[1757359355237,0.63937381,112190.0,112180.0,0.15195832]
[1757359357031,0.63937381,112190.0,112180.0,0.14989832]
[1757359357391,0.63437381,112190.0,112180.0,0.14989832]
[1757359357799,0.63437381,112190.0,112180.0,0.00013832]
[1757359357963,0.63437381,112190.0,112180.0,0.14981832]
[1757359367406,0.63437381,112190.0,112180.0,0.00013832]
[1757359367570,1.03489479,112190.0,112180.0,0.14977832]
[1757359373299,0.63437381,112190.0,112180.0,0.14977832]
[1757359373500,1.03489479,112190.0,112180.0,0.14977832]
[1757359377619,1.03489479,112190.0,112180.0,0.21821832]
[1757359377808,0.63437381,112190.0,112180.0,0.21821832]
[1757359385834,1.03489479,112190.0,112180.0,0.21821832]
[1757359387372,1.06164784,112190.0,112180.0,0.21821832]
[1757359387749,1.06164784,112190.0,112180.0,0.21817832]
[1757359387750,1.03489479,112190.0,112180.0,0.21817832]
[1757359394954,0.63437381,112190.0,112180.0,0.21817832]
[1757359396367,1.03489479,112190.0,112180.0,0.21813832]
[1757359396791,1.12681078,112190.0,112180.0,0.06857832]
[1757359396990,1.15356707,112190.0,112180.0,0.21813832]
[1757359397193,1.17275815,112190.0,112180.0,0.06857832]
[1757359397397,1.17275815,112190.0,112180.0,0.21813832]
[1757359397986,1.17275815,112190.0,112180.0,0.14969832]
[1757359398632,1.17275815,112190.0,112180.0,0.00013832]
[1757359398835,1.18941346,112190.0,112180.0,0.14969832]
[1757359399054,1.3436269,112190.0,112180.0,0.14969832]
[1757359399352,1.1940669,112190.0,112180.0,0.14969832]
[1757359399532,1.19405838,112190.0,112180.0,0.14969832]
[1757359400746,1.19405137,112190.0,112180.0,0.14969832]
[1757359401137,1.22427175,112190.0,112180.0,0.14969832]
[1757359402312,1.20029355,112190.0,112180.0,0.14969832]
[1757359402551,1.20027788,112190.0,112180.0,0.14969832]
[1757359403150,1.1940393,112190.0,112180.0,0.14969832]
[1757359404022,0.79351832,112190.0,112180.0,0.14969832]
[1757359404236,0.02093882,112150.0,112140.0,0.21431278]
[1757359404442,0.02093882,112150.0,112140.0,0.28490177]
[1757359405246,0.19927141,112150.0,112140.0,0.28490177]
[1757359405370,0.19927141,112150.0,112140.0,0.43446177]
[1757359405879,0.02093882,112150.0,112140.0,0.43446177]
[1757359406075,0.001,112150.0,112140.0,0.46505177]
[1757359407667,0.001,112150.0,112140.0,0.46305177]
[1757359407882,0.001,112150.0,112140.0,0.46505177]
[1757359408310,0.02093882,112160.0,112150.0,0.17833259]
[1757359408490,0.02093882,112160.0,112150.0,0.17971551]
[1757359408693,0.02093882,112160.0,112150.0,0.20777551]
[1757359408898,0.02093882,112160.0,112150.0,0.23314657]
[1757359409467,0.02093882,112160.0,112150.0,0.23414657]
[1757359409895,0.02093882,112160.0,112150.0,0.23614657]
[1757359415141,0.02093882,112160.0,112150.0,0.38566657]
[1757359416002,0.02093882,112160.0,112150.0,0.23614657]
[1757359416208,0.02093882,112160.0,112150.0,0.38566657]
[1757359418828,0.19925551,112160.0,112150.0,0.35961657]
[1757359420778,0.59972541,112160.0,112150.0,0.03176398]
[1757359421040,0.60489541,112160.0,112150.0,0.35961657]
[1757359421217,0.60489541,112160.0,112150.0,0.34961657]
[1757359421562,0.20442551,112160.0,112150.0,0.34961657]
[1757359422219,0.60489541,112160.0,112150.0,0.34961657]
[1757359422394,0.20442551,112160.0,112150.0,0.34961657]
[1757359422812,0.20442551,112160.0,112150.0,0.02176398]
[1757359423015,0.20442551,112160.0,112150.0,0.35099949]
[1757359423317,0.20242551,112160.0,112150.0,0.34961657]
[1757359423528,0.60289541,112160.0,112150.0,0.34961657]
[1757359424100,0.20242551,112160.0,112150.0,0.34961657]
[1757359424482,0.20242551,112160.0,112150.0,0.36744657]
[1757359424705,0.20442551,112160.0,112150.0,0.17128398]
[1757359425078,0.20442551,112160.0,112150.0,0.33223551]
[1757359425284,0.20442551,112160.0,112150.0,0.33085259]
[1757359425536,0.60489541,112160.0,112150.0,0.15252]
[1757359425728,0.20442551,112160.0,112150.0,0.33085259]
[1757359425885,0.60489541,112160.0,112150.0,0.33085259]
[1757359426589,0.20242551,112160.0,112150.0,0.15252]
[1757359426838,0.6968114,112160.0,112150.0,0.15252]
[1757359428205,0.6968114,112160.0,112150.0,0.003]
[1757359428873,0.6968114,112160.0,112150.0,0.15252]
[1757359429109,0.2963415,112160.0,112150.0,0.003]
[1757359429355,0.6968114,112160.0,112150.0,0.15390292]
[1757359429598,0.2963415,112160.0,112150.0,0.15390292]
[1757359429847,0.6968114,112160.0,112150.0,0.15390292]
[1757359430394,0.2963415,112160.0,112150.0,0.15390292]
[1757359430534,0.6968114,112160.0,112150.0,0.15390292]
[1757359431209,0.2963415,112160.0,112150.0,0.15390292]
[1757359431515,0.6968114,112160.0,112150.0,0.15390292]
[1757359431899,1.0972813,112160.0,112150.0,0.003]
[1757359432083,1.0972813,112160.0,112150.0,0.15248]
[1757359432289,0.6968114,112160.0,112150.0,0.15248]
[1757359435031,0.2963415,112160.0,112150.0,0.15248]
[1757359435246,0.6968114,112160.0,112150.0,0.15248]
[1757359439518,0.2963415,112160.0,112150.0,0.15248]
[1757359439745,0.6968114,112160.0,112150.0,0.15248]
[1757359440547,1.0972813,112160.0,112150.0,0.15248]
[1757359441085,0.6968114,112160.0,112150.0,0.15248]
[1757359441521,0.6968114,112160.0,112150.0,0.15148]
[1757359441734,0.6968114,112160.0,112150.0,0.14948]
[1757359441938,0.6968114,112160.0,112150.0,0.15048]
[1757359442055,0.2963415,112160.0,112150.0,0.15048]
[1757359442491,0.6968114,112160.0,112150.0,0.15048]
[1757359444127,0.2963415,112160.0,112150.0,0.15048]
[1757359444681,0.6968114,112160.0,112150.0,0.15048]
[1757359445133,0.2963415,112160.0,112150.0,0.15048]
[1757359445344,0.6968114,112160.0,112150.0,0.15048]
[1757359457738,0.6968114,112160.0,112150.0,0.001]
[1757359457947,0.6968114,112160.0,112150.0,0.15044]
[1757359457948,1.0972813,112160.0,112150.0,0.15044]
[1757359458166,0.2963415,112160.0,112150.0,0.15044]
[1757359458373,1.0972813,112160.0,112150.0,0.15044]
[1757359460572,1.0972813,112160.0,112150.0,0.001]
[1757359461109,1.0972813,112160.0,112150.0,0.15044]
[1757359464911,1.0972813,112160.0,112150.0,0.001]
[1757359465123,1.0972813,112160.0,112150.0,0.15044]
[1757359465538,0.2963415,112160.0,112150.0,0.15044]
[1757359465753,1.0972813,112160.0,112150.0,0.15044]
[1757359466926,1.0972813,112160.0,112150.0,0.001]
[1757359467126,1.0972813,112160.0,112150.0,0.15044]
[1757359468219,0.2963415,112160.0,112150.0,0.15044]
[1757359468399,1.0972813,112160.0,112150.0,0.15044]
[1757359469772,0.6968114,112160.0,112150.0,0.15044]
[1757359470285,0.1810183,112150.0,112130.0,0.19612664]
[1757359470473,0.17834849,112140.0,112130.0,0.18720843]
[1757359470674,0.17834849,112140.0,112130.0,0.25564843]
[1757359471108,0.27611429,112150.0,112130.0,0.25564843]
[1757359471291,0.27611429,112150.0,112130.0,0.25764843]
[1757359471492,0.27711429,112150.0,112140.0,0.1494]
[1757359471670,0.27393429,112150.0,112140.0,0.32774849]
[1757359471838,0.27293429,112150.0,112140.0,0.1494]
[1757359472042,0.27293429,112150.0,112140.0,0.32774849]
[1757359472264,0.29387311,112150.0,112140.0,0.32774849]
[1757359473639,0.29705311,112150.0,112140.0,0.32774849]
[1757359473846,0.29387311,112150.0,112140.0,0.32874849]
[1757359474201,0.29387311,112150.0,112140.0,0.32974849]
[1757359474630,0.29705311,112150.0,112140.0,0.32974849]
[1757359475584,0.29705311,112150.0,112140.0,0.1514]
[1757359475778,0.29705311,112150.0,112140.0,0.15278342]
[1757359475985,0.29705311,112150.0,112140.0,0.33113191]
[1757359476186,0.2943674,112150.0,112140.0,0.32974849]
[1757359478164,0.2911874,112150.0,112140.0,0.17766278]
[1757359478376,0.2911874,112150.0,112140.0,0.1790462]
[1757359479340,0.2911874,112150.0,112140.0,0.3284462]
[1757359479544,0.2911874,112150.0,112140.0,0.32706278]
[1757359480907,0.2911874,112150.0,112140.0,0.39550278]
[1757359483010,0.2942374,112150.0,112140.0,0.39550278]
[1757359483218,0.2911874,112150.0,112140.0,0.39550278]
[1757359492947,0.2911874,112150.0,112140.0,0.24610278]
[1757359493095,0.2911874,112150.0,112140.0,0.39546278]
[1757359495836,0.69705268,112150.0,112140.0,0.2178]
[1757359496040,0.2911874,112150.0,112140.0,0.2178]
[1757359496244,0.2942374,112150.0,112140.0,0.2178]
[1757359496827,0.69705268,112150.0,112140.0,0.2178]
[1757359498272,0.2963774,112150.0,112140.0,0.2178]
[1757359498445,0.2942374,112150.0,112140.0,0.2178]
[1757359500055,0.69491268,112150.0,112140.0,0.2178]
[1757359500777,0.69705268,112150.0,112140.0,0.2178]
[1757359501278,0.2963774,112150.0,112140.0,0.2178]
[1757359501462,0.69491268,112150.0,112140.0,0.2178]
[1757359501637,0.2911874,112150.0,112140.0,0.2178]
[1757359502062,0.2942374,112150.0,112140.0,0.2178]
[1757359503623,0.2963774,112150.0,112140.0,0.2178]
[1757359504723,0.69705268,112150.0,112140.0,0.06844]
[1757359504923,0.69705268,112150.0,112140.0,0.2178]
[1757359505673,0.2963774,112150.0,112140.0,0.2178]
[1757359505883,0.69705268,112150.0,112140.0,0.2178]
[1757359506565,0.69705268,112150.0,112140.0,0.06844]
[1757359507108,0.69705268,112150.0,112140.0,0.2178]
[1757359507851,0.69705268,112150.0,112140.0,0.06844]
[1757359508057,0.69705268,112150.0,112140.0,0.244559]
[1757359509693,0.69705268,112150.0,112140.0,0.262389]
[1757359511251,0.69705268,112150.0,112140.0,0.244559]
[1757359512313,0.69705268,112150.0,112140.0,0.2178]
[1757359512725,0.69705268,112150.0,112140.0,0.06844]
[1757359512931,0.38749569,112150.0,112140.0,0.06844]
[1757359513156,1.12817097,112150.0,112140.0,0.21776]
[1757359513377,0.75425685,112150.0,112140.0,0.21776]
[1757359513574,1.15493213,112150.0,112140.0,0.21776]
[1757359513778,0.66313856,112150.0,112140.0,0.21776]
[1757359513903,1.06381384,112150.0,112140.0,0.21776]
[1757359517969,0.66313856,112150.0,112140.0,0.21776]
[1757359518185,1.06381384,112150.0,112140.0,0.21776]
[1757359520207,0.66313856,112150.0,112140.0,0.21776]
[1757359520559,1.06381384,112150.0,112140.0,0.21776]
[1757359521026,1.15572983,112150.0,112140.0,0.21776]
[1757359521231,0.75505455,112150.0,112140.0,0.21776]
[1757359521440,1.15572983,112150.0,112140.0,0.21776]
[1757359521796,1.06381384,112150.0,112140.0,0.21776]
[1757359522979,0.66413856,112150.0,112140.0,0.21776]
[1757359523186,1.06481384,112150.0,112140.0,0.21776]
[1757359526034,0.66413856,112150.0,112140.0,0.21776]
[1757359526237,1.06481384,112150.0,112140.0,0.21776]
[1757359526439,0.66413856,112150.0,112140.0,0.21776]
[1757359526645,1.06481384,112150.0,112140.0,0.21776]
[1757359527746,1.15672983,112150.0,112140.0,0.21776]
[1757359528574,0.66413856,112150.0,112140.0,0.21776]
[1757359528780,1.06481384,112150.0,112140.0,0.21776]
[1757359530285,0.31894856,112150.0,112140.0,0.21776]
[1757359530507,0.001,112150.0,112140.0,0.39610849]
[1757359530737,0.00077103,112150.0,112140.0,0.44739677]
[1757359532836,0.00013871,112160.0,112150.0,0.17833259]
[1757359533012,0.00013871,112160.0,112150.0,0.17971551]
[1757359533450,0.00013871,112160.0,112150.0,0.42042996]
[1757359533654,0.00013871,112160.0,112150.0,0.41904704]
[1757359533857,0.00013871,112160.0,112150.0,0.44357704]
[1757359534268,0.00113871,112160.0,112150.0,0.44357704]
[1757359536289,0.00113871,112160.0,112150.0,0.59333704]
[1757359537246,0.00113871,112160.0,112150.0,0.59196748]
[1757359540077,0.00113871,112160.0,112150.0,0.44220748]
[1757359540297,0.00113871,112160.0,112150.0,0.59192748]
[1757359546316,0.1794554,112160.0,112150.0,0.59192748]
[1757359546517,0.1794554,112160.0,112150.0,0.41496445]
[1757359547059,0.1794554,112160.0,112150.0,0.59329704]
[1757359547243,0.1794554,112160.0,112150.0,0.41496445]
[1757359547494,0.1794554,112160.0,112150.0,0.26524445]
[1757359547660,0.1794554,112160.0,112150.0,0.59365704]
[1757359549556,0.1794554,112160.0,112150.0,0.44357704]
[1757359549778,0.1794554,112160.0,112150.0,0.59369704]
[1757359550453,0.17678065,112160.0,112150.0,0.59369704]
[1757359551651,0.17678065,112160.0,112150.0,0.56916704]
[1757359552700,0.18149104,112170.0,112150.0,0.56916704]
[1757359552998,0.17842482,112170.0,112150.0,0.56916704]
[1757359553276,0.17842482,112170.0,112150.0,0.54241259]
[1757359553518,0.17842482,112170.0,112160.0,0.02675188]
[1757359555163,0.17942482,112170.0,112160.0,0.02675188]
[1757359555922,0.18142482,112170.0,112160.0,0.02675188]
[1757359556134,0.18142482,112170.0,112160.0,0.09519188]
[1757359561684,0.18461482,112170.0,112160.0,0.09519188]
[1757359561891,0.29952963,112170.0,112160.0,0.09519188]
[1757359562038,1.10056667,112170.0,112160.0,0.21852]
[1757359562432,0.72680489,112170.0,112160.0,0.21852]
[1757359562621,0.72680489,112170.0,112160.0,0.06844]
[1757359562807,0.72680489,112170.0,112160.0,0.21852]
[1757359563636,1.06680489,112170.0,112160.0,0.2186]
[1757359565504,1.46732341,112170.0,112160.0,0.06844]
[1757359565713,1.46732341,112170.0,112160.0,0.2186]
[1757359566070,1.50760145,112170.0,112160.0,0.2186]
[1757359566286,1.10708293,112170.0,112160.0,0.2186]
[1757359567026,1.50760145,112170.0,112160.0,0.2186]
[1757359567233,1.52431228,112170.0,112160.0,0.2186]
[1757359568073,1.50760145,112170.0,112160.0,0.2186]
[1757359568274,1.50760145,112170.0,112160.0,0.21856]
[1757359568742,1.50760145,112170.0,112160.0,0.21852]
[1757359568950,1.52677652,112170.0,112160.0,0.21852]
[1757359569358,0.17836439,112130.0,112120.0,0.3923803]
[1757359569559,0.18155439,112130.0,112120.0,0.6109003]
[1757359569766,0.18155439,112130.0,112120.0,0.6198221]
[1757359570574,0.18167808,112130.0,112120.0,0.6218221]
[1757359571284,0.17848808,112130.0,112120.0,0.6218221]
[1757359571822,0.00112369,112130.0,112120.0,0.6258221]
[1757359573638,0.17948808,112130.0,112120.0,0.6258221]
[1757359574098,0.00112369,112130.0,112120.0,0.6258221]
[1757359574289,0.17948808,112130.0,112120.0,0.6258221]
[1757359574681,0.00112369,112130.0,112120.0,0.6258221]
[1757359574905,0.17948808,112130.0,112120.0,0.6258221]
[1757359576180,0.00112369,112130.0,112120.0,0.6258221]
[1757359576390,0.17948808,112130.0,112120.0,0.6258221]
[1757359577621,0.17948808,112130.0,112120.0,0.6169003]
[1757359578651,0.17948808,112130.0,112120.0,0.62574892]
[1757359579346,0.17948808,112130.0,112120.0,0.64346892]
[1757359579543,0.17948808,112130.0,112120.0,0.44724862]
[1757359579754,0.18267808,112130.0,112120.0,0.62562892]
[1757359580260,0.17948808,112130.0,112120.0,0.62562892]
[1757359580703,0.18463808,112130.0,112120.0,0.62562892]
[1757359580908,0.18463808,112130.0,112120.0,0.44724862]
[1757359581111,0.18463808,112130.0,112120.0,0.62562892]
[1757359581322,0.18267808,112130.0,112120.0,0.62562892]
[1757359581509,0.18463808,112130.0,112120.0,0.62562892]
[1757359581708,0.18167808,112130.0,112120.0,0.61962892]
[1757359582116,0.18167808,112130.0,112120.0,0.62162892]
[1757359585721,0.00012369,112130.0,112120.0,0.62162892]
[1757359594020,0.17848808,112130.0,112120.0,0.62162892]
[1757359594913,0.00012369,112130.0,112120.0,0.62162892]
[1757359595348,0.17848808,112130.0,112120.0,0.62162892]
[1757359596051,0.18167808,112130.0,112120.0,0.62162892]
[1757359598387,0.18363808,112130.0,112120.0,0.62150892]
[1757359598822,0.00331369,112130.0,112120.0,0.62150892]
[1757359599657,0.18167808,112130.0,112120.0,0.62150892]
[1757359601163,0.17848808,112130.0,112120.0,0.62150892]
[1757359601731,0.18150808,112130.0,112120.0,0.62150892]
[1757359603317,0.18150808,112130.0,112120.0,0.40489051]
[1757359614496,0.00314369,112130.0,112120.0,0.40489051]
[1757359614690,0.18150808,112130.0,112120.0,0.40489051]
[1757359615671,0.00012369,112130.0,112120.0,0.40489051]
[1757359617615,0.00012369,112130.0,112120.0,0.42808051]
[1757359621779,0.00012369,112130.0,112120.0,0.27824051]
[1757359622014,0.00012369,112130.0,112120.0,0.42788051]
[1757359622244,0.00012369,112130.0,112120.0,0.27824051]
[1757359622473,0.00012369,112130.0,112120.0,0.42792051]
[1757359622697,0.00012369,112130.0,112120.0,0.27824051]
[1757359622850,0.00012369,112130.0,112120.0,0.42792051]
[1757359623077,0.00012369,112130.0,112120.0,0.27824051]
[1757359623285,0.00012369,112130.0,112120.0,0.42792051]
[1757359623760,0.00012369,112130.0,112120.0,0.27824051]
[1757359623964,0.00012369,112130.0,112120.0,0.40473051]
[1757359625187,0.00012369,112130.0,112120.0,0.25505051]
[1757359625361,0.00314369,112130.0,112120.0,0.40469051]
[1757359625542,0.00012369,112130.0,112120.0,0.40469051]
[1757359628309,0.00012369,112130.0,112120.0,0.43144969]
[1757359632549,0.00012369,112130.0,112120.0,0.45608969]
[1757359634034,0.00012369,112130.0,112120.0,0.54800568]
[1757359640526,0.00012369,112130.0,112120.0,0.88800568]
[1757359640772,0.00012369,112130.0,112120.0,1.08800568]
[1757359643697,0.00012369,112130.0,112120.0,0.93836568]
[1757359643931,0.00012369,112130.0,112120.0,0.99648969]
[1757359644361,0.00012369,112130.0,112120.0,0.99656969]
[1757359645811,0.00012369,112130.0,112120.0,0.79656969]
[1757359652373,0.00012369,112130.0,112120.0,0.88848568]
[1757359657957,0.00012369,112130.0,112120.0,0.95185751]
[1757359660325,0.00012369,112130.0,112120.0,1.15185751]
[1757359661108,0.00012369,112130.0,112120.0,1.00173751]
[1757359661329,0.00012369,112130.0,112120.0,1.15173751]
[1757359665320,0.00012369,112130.0,112120.0,1.00173751]
[1757359665578,0.00012369,112130.0,112120.0,1.15177751]
[1757359665797,0.00012369,112130.0,112120.0,1.00173751]
[1757359665990,0.00012369,112130.0,112120.0,1.15173751]
[1757359668151,0.00012369,112130.0,112120.0,1.15036735]
[1757359670453,0.25199985,112160.0,112150.0,0.17833259]
[1757359670661,0.25199985,112160.0,112150.0,0.39857777]
[1757359670853,0.25199985,112160.0,112150.0,0.39719485]
[1757359671058,0.25397985,112160.0,112150.0,0.39719485]
[1757359671477,0.18336773,112160.0,112150.0,0.39719485]
[1757359672354,0.18336773,112160.0,112150.0,0.24723485]
[1757359672557,0.18336773,112160.0,112150.0,0.39715485]
[1757359673141,0.18536773,112160.0,112150.0,0.39715485]
[1757359674282,0.002,112160.0,112150.0,0.39715485]
[1757359676038,0.21123572,112180.0,112160.0,0.17830361]
[1757359676251,0.3467565,112180.0,112170.0,0.14988]
[1757359676455,0.33188459,112180.0,112170.0,0.14988]
[1757359676894,0.30513171,112180.0,112170.0,0.14988]
[1757359677515,0.30713171,112180.0,112170.0,0.15875685]
[1757359679071,0.30713171,112180.0,112170.0,0.33705764]
[1757359680669,0.1942769,112180.0,112170.0,0.33705764]
[1757359684561,0.19226913,112180.0,112170.0,0.33705764]
[1757359685226,0.19424913,112180.0,112170.0,0.33705764]
[1757359687144,0.002,112180.0,112170.0,0.33705764]
[1757359688753,0.18723579,112200.0,112170.0,0.33705764]
[1757359688990,0.28222178,112200.0,112180.0,0.24809205]
[1757359689199,0.178269,112190.0,112180.0,0.24671062]
[1757359689400,0.183319,112190.0,112180.0,0.24672489]
[1757359689619,0.183319,112190.0,112180.0,0.39648489]
[1757359690040,0.183319,112190.0,112180.0,0.24672489]
[1757359690272,0.183319,112190.0,112180.0,0.39648489]
[1757359690511,0.18064497,112190.0,112180.0,0.39648489]
[1757359692977,0.18264497,112190.0,112180.0,0.06844]
[1757359693228,0.18264497,112190.0,112180.0,0.39652489]
[1757359694675,0.18264497,112190.0,112180.0,0.06844]
[1757359694881,0.18264497,112190.0,112180.0,0.21828]
[1757359695316,0.18264497,112190.0,112180.0,0.06844]
[1757359695543,0.18264497,112190.0,112180.0,0.39660489]
[1757359696997,0.18264497,112190.0,112180.0,0.21832]
[1757359697200,0.18264497,112190.0,112180.0,0.21836]
[1757359697508,0.69606676,112190.0,112180.0,0.21844]
[1757359703747,0.69606676,112190.0,112180.0,0.06844]
[1757359703961,0.69606676,112190.0,112180.0,0.21844]
[1757359704827,0.69606676,112190.0,112180.0,0.06844]
[1757359705032,0.69606676,112190.0,112180.0,0.2184]
[1757359708166,0.69906676,112190.0,112180.0,0.2194]
[1757359708702,0.29849978,112190.0,112180.0,0.2194]
[1757359708909,0.69906676,112190.0,112180.0,0.2194]
[1757359711881,0.29849978,112190.0,112180.0,0.2194]
[1757359712307,0.69906676,112190.0,112180.0,0.2194]
[1757359714091,0.29849978,112190.0,112180.0,0.2194]
[1757359714278,0.69906676,112190.0,112180.0,0.2194]
[1757359716130,0.29849978,112190.0,112180.0,0.2194]
[1757359716332,0.29849978,112190.0,112180.0,0.39768489]
[1757359716892,0.29849978,112190.0,112180.0,0.2194]
[1757359717353,0.29849978,112190.0,112180.0,0.39768489]
[1757359717558,0.29849978,112190.0,112180.0,0.2194]
[1757359717975,0.27756096,112190.0,112180.0,0.2194]
[1757359718179,0.27756096,112190.0,112180.0,0.39768489]
[1757359718978,0.27756096,112190.0,112180.0,0.2194]
[1757359737061,0.27756096,112190.0,112180.0,0.06944]
[1757359737279,0.27756096,112190.0,112180.0,0.219]
[1757359744335,0.27756096,112190.0,112180.0,0.39728489]
[1757359744544,0.18564497,112190.0,112180.0,0.39728489]
[1757359744768,0.18059497,112190.0,112180.0,0.39728489]
[1757359745400,0.183269,112190.0,112180.0,0.39728489]
[1757359747831,0.005,112190.0,112180.0,0.39728489]
[1757359748244,0.183269,112190.0,112180.0,0.39728489]
[1757359750875,0.005,112190.0,112180.0,0.39728489]
[1757359751104,0.183269,112190.0,112180.0,0.39728489]
[1757359754628,0.183269,112190.0,112180.0,0.23772489]
[1757359755754,0.183269,112190.0,112180.0,0.38728489]
[1757359756476,0.186319,112190.0,112180.0,0.38728489]
[1757359760632,0.188429,112190.0,112180.0,0.38728489]
[1757359762952,0.186319,112190.0,112180.0,0.38728489]
[1757359764763,0.186319,112190.0,112180.0,0.23772489]
[1757359764968,0.188429,112190.0,112180.0,0.38728489]
[1757359769141,0.188429,112190.0,112180.0,0.06844]
[1757359769374,0.188429,112190.0,112180.0,0.39766632]
[1757359769610,0.188429,112190.0,112180.0,0.39628489]
[1757359776844,0.186319,112190.0,112180.0,0.39628489]
[1757359777671,0.188429,112190.0,112180.0,0.39628489]
[1757359788602,0.188429,112190.0,112180.0,0.06844]
[1757359788829,0.188429,112190.0,112180.0,0.39624489]
[1757359789732,0.68072194,112190.0,112180.0,0.21796]
[1757359790701,0.70747151,112190.0,112180.0,0.21796]
[1757359792047,0.72841033,112190.0,112180.0,0.21796]
[1757359793702,0.32803338,112190.0,112180.0,0.21796]
[1757359793900,0.72841033,112190.0,112180.0,0.21796]
[1757359800232,0.32803338,112190.0,112180.0,0.21796]
[1757359800464,0.30193456,112190.0,112180.0,0.39624489]
[1757359800726,0.03174957,112190.0,112180.0,0.39624489]
[1757359800912,0.183269,112190.0,112180.0,0.39624489]
[1757359801538,0.186199,112190.0,112180.0,0.39624489]
[1757359802611,0.188159,112190.0,112180.0,0.39624489]
[1757359809434,0.005,112190.0,112180.0,0.39624489]
[1757359810846,0.003,112190.0,112180.0,0.39624489]
[1757359811617,0.21717383,112200.0,112190.0,0.178269]
[1757359811908,0.31122982,112200.0,112190.0,0.00138094]
[1757359812337,0.178269,112190.0,112180.0,0.24672489]
[1757359812572,0.183599,112190.0,112180.0,0.21792]
[1757359812780,0.58397595,112190.0,112180.0,0.06844]
[1757359812986,0.58397595,112190.0,112180.0,0.21792]
[1757359814083,0.58397595,112190.0,112180.0,0.39620489]
[1757359814291,0.184599,112190.0,112180.0,0.39620489]
[1757359814767,0.187599,112190.0,112180.0,0.39620489]
[1757359814910,0.58797595,112190.0,112180.0,0.21792]
[1757359816069,0.67989194,112190.0,112180.0,0.21792]
[1757359818271,0.27418499,112190.0,112180.0,0.39620489]
[1757359818445,0.004,112190.0,112180.0,0.39620489]
[1757359819619,0.004,112190.0,112180.0,0.44771002]
[1757359820023,0.003,112190.0,112180.0,0.44771002]
[1757359820224,0.003,112190.0,112180.0,0.51108185]
[1757359820482,0.21715715,112210.0,112200.0,0.17825311]
[1757359820483,0.19041076,112210.0,112200.0,0.17825311]
[1757359820682,0.28460567,112210.0,112200.0,0.32773311]
[1757359820921,0.68498262,112210.0,112200.0,0.14948]
[1757359821300,0.17825311,112200.0,112190.0,0.178269]
[1757359821552,0.18144311,112200.0,112190.0,0.327749]